[Event "German Bundesliga 2023-24"]
[Site "Germany"]
[Date "2024.03.16"]
[Round "12.7"]
[White "Braun, Arik"]
[Black "Wong, Gengchun"]
[Result "1/2-1/2"]
[ECO "D11"]
[WhiteElo "2588"]
[BlackElo "2252"]
[Annotator "TA"]
[PlyCount "56"]
[EventDate "2023.10.20"]
[EventType "team-tourn"]
[EventCountry "GER"]
[SourceTitle "playchess.com"]
[Source "ChessBase"]
[SourceQuality "1"]
[TimeControl "40/6000+30:3000+30"]

{[%evp 13,56,26,29,29,26,22,14,-3,30,27,24,21,30,20,29,24,50,48,79,75,60,81,110,108,122,107,85,98,96,96,73,57,63,59,58,32,25,13,26,0,0,-35,-33,-45,0]} 1. d4 {[%emt 0:00:06]} d5 {[%emt 0:00:06]} 2. c4 {[%emt 0:00:05]} c6 {[%emt 0:00:05]} 3. Nf3 {[%emt 0:00:23]} Nf6 {[%emt 0:00:06]} 4. e3 {[%emt 0:00:09]} Bg4 {[%emt 0:00:08][%cal Bc8g4,Bg4h5,Bh5g6][%mdl 32]} 5. h3 {[%emt 0:01:43]} Bh5 {[%emt 0:00:10]} 6. Nc3 {[%emt 0:01:31]} e6 {[%emt 0:03:11]} 7. g4 {[%emt 0:01:50]} Bg6 {[%emt 0:01:16]} 8. Ne5 {[%emt 0:01:05]} Nbd7 {[%emt 0:04:28]} 9. h4 {[%emt 0:15:27] [#] Droht Nxd7 und aus.} dxc4 $1 {[%emt 0:10:30] Und ...Nxe5 würde nun gewinnen.} 10. Nxc4 {[%emt 0:09:44] Die Stellung ist ausgeglichen.} h5 {[%emt 0:17:58]} 11. g5 {[%emt 0:02:53]} Nd5 {[%emt 0:00:25]} 12. Bg2 {[%emt 0:04:10]} b5 {[%emt 0:26:16] [#] Zielt auf ...Nxc3 ab.} 13. Nd2 {[%emt 0:06:03]} Rc8 {[%emt 0:01:24]} 14. O-O {[%emt 0:16:29]} Be7 {[%emt 0:05:29]} 15. Ne2 {[%emt 0:07:29]} e5 {[%emt 0:14:35]} 16. e4 {[%emt 0:10:23]} Nb4 {[%emt 0:00:51]} 17. Nb3 {[%emt 0:00:27]} exd4 {[%emt 0:05:24]} 18. a3 {[%emt 0:06:08] Pariert c5.} ({Bloß nicht} 18. Nexd4 Ne5 $14) 18... d3 {[%emt 0:01:08]} 19. axb4 {[%emt 0:00:15]} dxe2 {[%emt 0:00:04]} 20. Qxe2 {[%emt 0:00:04] Und jetzt Bf4 wäre schön.} Bxb4 {[%emt 0:04:02]} 21. Rd1 {[%emt 0:05:44]} Qc7 {[%emt 0:02:22] Es drohte Bf4} 22. Bh3 {[%emt 0:03:21]} Rd8 {[%emt 0:00:46]} 23. Bd2 {[%emt 0:01:06] Weiß hat aktiveres Spiel.} Be7 {[%emt 0:05:19]} 24. Be3 {[%emt 0:06:05]} Nb6 $1 {[%emt 0:02:30]} 25. Rxd8+ {[%emt 0:00:13]} Bxd8 {[%emt 0:01:35]} 26. Bc5 {[%emt 0:05:03] e5 wäre nun fies.} (26. f4 $5) 26... Be7 $1 {[%emt 0:00:17]} 27. Bxe7 {[%emt 0:00:41]} Qxe7 {[%emt 0:00:34]} 28. Nd4 {[%emt 0:00:45]} Qc5 {[%emt 0:02:28] Gewichteter Fehlerwert: Weiß=0.07 (makellos) /Schwarz=0.06 (makellos) .  Ungenau:       	Weiß=3     	Schwarz=5     OK:         	Weiß=5     	Schwarz=9     Bester:       	Weiß=2     	Schwarz=1     Stark:        	---       	Schwarz=3} 1/2-1/2

[Event "German Bundesliga 2023-24"]
[Site "Germany"]
[Date "2024.03.16"]
[Round "12.7"]
[White "Naumann, Alexander"]
[Black "Lindgren, Philip"]
[Result "1/2-1/2"]
[ECO "E18"]
[WhiteElo "2498"]
[BlackElo "2395"]
[Annotator "TA"]
[PlyCount "95"]
[EventDate "2023.10.20"]
[EventType "team-tourn"]
[EventCountry "GER"]
[SourceTitle "playchess.com"]
[Source "ChessBase"]
[SourceQuality "1"]
[TimeControl "40/6000+30:3000+30"]

{[%evp 19,95,41,40,35,57,44,57,43,84,70,133,147,147,131,152,103,125,103,104,23,187,117,111,0,0,0,0,0,0,0,0,-10,-4,-7,-9,-13,21,20,16,20,26,15,22,0,14,2,20,20,20,0,0,0,0,0,0,0,0,0,0,0,0,0,0,0,0,0,0,0,0,0,0,0,0,0,0,0,0,0]} 1. c4 {[%emt 0:00:03]} Nf6 {[%emt 0:00:18]} 2. Nf3 {[%emt 0:00:08]} e6 {[%emt 0:00:16]} 3. g3 {[%emt 0:00:05]} d5 {[%emt 0:03:44]} 4. Bg2 {[%emt 0:00:11]} Be7 {[%emt 0:03:55]} 5. d4 {[%emt 0:05:26]} O-O {[%emt 0:03:17]} 6. O-O {[%emt 0:01:49]} b6 {[%emt 0:09:36]} 7. Nc3 {[%emt 0:02:50]} Bb7 {[%emt 0:01:07]} 8. cxd5 {[%emt 0:00:41]} exd5 {[%emt 0:01:49]} 9. Bf4 {[%emt 0:00:42]} c5 {[%emt 0:06:05]} 10. Rc1 {[%emt 0:03:29]} Na6 {[%emt 0:02:52][%cal Bb8a6,Ba6c7,Bc7e6][%mdl 32]} 11. Qa4 {[%emt 0:09:44]} Nc7 {[%emt 0:05:03]} 12. Rfd1 {[%emt 0:05:26]} Ne6 {[%emt 0:03:40]} 13. Be5 {[%emt 0:03:07] White is slightly better.} c4 {[%emt 0:15:14]} 14. b3 {[%emt 0:10:43]} Qe8 {[%emt 0:13:48]} (14... cxb3 $14 15. Bxf6 (15. Qxb3 Ne4 $16) (15. axb3 a6 $14) 15... b2) 15. Qxe8 $16 {[%emt 0:25:16]} Rfxe8 {[%emt 0:00:48]} 16. bxc4 {[%emt 0:02:57]} dxc4 {[%emt 0:01:13]} 17. d5 {[%emt 0:00:19]} (17. Nd2 $142 Bxg2 18. Kxg2) 17... Nf8 {[%emt 0:03:16]} 18. d6 {[%emt 0:07:57]} Bd8 {[%emt 0:00:22]} 19. Nb5 {[%emt 0:14:26] White is much more active.} (19. a4 $16) 19... a6 $2 {[%emt 0:14:13]} (19... Bxf3 $11 20. Bxf3 Rxe5) 20. Bxf6 {[%emt 0:00:23]} (20. Nc7 $18 Bxc7 21. dxc7) 20... axb5 {[%emt 0:02:26]} 21. Bxd8 {[%emt 0:00:10]} (21. d7 $16 Rxe2 (21... Bxf6 22. dxe8=N Rxe8 23. Nd4 $18) (21... Re6 $2 22. Nd4 $18) 22. Nd4 Bxg2 23. Nxe2) 21... Rexd8 $11 {[%emt 0:00:54]} 22. Ne5 {[%emt 0:04:07]} Bxg2 {[%emt 0:01:17]} 23. Kxg2 {[%emt 0:00:02]} Rac8 {[%emt 0:04:33] Dodges Nc6} 24. Rd5 {[%emt 0:00:52]} f6 {[%emt 0:05:58]} 25. Nf3 {[%emt 0:02:30]} Rc5 {[%emt 0:01:23]} 26. Rxc5 {[%emt 0:01:00]} bxc5 {[%emt 0:00:06][%mdl 4096] Endgame. KRN-KRN} 27. a4 $1 {[%emt 0:00:06]} b4 {[%emt 0:04:31] [#] ...c3 is the strong threat.} 28. Rxc4 {[%emt 0:00:23]} Ne6 {[%emt 0:00:05]} 29. Nd2 {[%emt 0:01:37]} Rxd6 {[%emt 0:00:11]} 30. Nb3 {[%emt 0:00:14][%cal Oa4a5]} Ra6 {[%emt 0:00:57] The position is equal.} 31. f4 {[%emt 0:04:14]} (31. Nxc5 $2 Rc6 32. Rxb4 Rxc5 33. Rb8+ Kf7 $19) (31. a5 $5) 31... f5 {[%emt 0:01:07]} 32. e4 {[%emt 0:00:44]} (32. Nxc5 $2 {is the wrong capture.} Rc6 33. Rxb4 Rxc5 $19 (33... Nxc5 34. Rc4 $17)) 32... g6 {[%emt 0:00:51]} 33. exf5 {[%emt 0:01:18]} (33. Nxc5 Rc6 34. Rxb4 Nxc5 (34... Rxc5 35. exf5 gxf5 36. h3 $17) 35. exf5 gxf5 $15) 33... gxf5 {[%emt 0:00:07]} 34. g4 {[%emt 0:00:43]} (34. Nxc5 Rc6 35. Rxb4 Rxc5 $17) (34. a5 $5) 34... Rxa4 {[%emt 0:00:53] [#] White must now prevent ...Ra2+.} 35. gxf5 {[%emt 0:00:53]} Ra2+ {[%emt 0:00:41]} 36. Kf3 {[%emt 0:01:40]} Nd4+ {[%emt 0:01:20]} 37. Nxd4 {[%emt 0:00:06]} cxd4 {[%emt 0:00:06][%cal Bc5d4,Bd4d3][%mdl 32]} 38. Rxb4 {[%emt 0:00:50] KR-KR} d3 {[%emt 0:00:53]} 39. h4 {[%emt 0:02:03]} Rh2 {[%emt 0:00:26]} 40. Rd4 {[%emt 0:00:34]} Rxh4 {[%emt 0:00:36]} 41. Ke4 {[%emt 0:50:29]} Rh3 {[%emt 0:05:55]} 42. f6 {[%emt 0:00:00]} Rh5 {[%emt 0:16:13]} 43. Rxd3 {[%emt 0:00:00]} Kf7 {[%emt 0:00:40]} 44. Rd6 {[%emt 0:00:00]} Ra5 {[%emt 0:00:38]} 45. Rd7+ {[%emt 0:00:00]} Kxf6 {[%emt 0:01:38]} 46. Rxh7 {[%emt 0:00:00]} Ra4+ {[%emt 0:00:49]} 47. Kf3 {[%emt 0:00:00]} Ra1 {[%emt 0:00:48]} 48. Rh6+ {[%emt 0:00:00] White really could win this.   Weighted Error Value: White=0.15 (very precise) /Black=0.14 (very precise) .  Loses game:     	---       	Black=1      Mistake:       	White=4     	Black=1      Inaccurate:     	---       	Black=2      OK:         	White=13    	Black=18     Best:        	White=1     	Black=2      Strong:       	White=1     	---} 1/2-1/2

[Event "German Bundesliga 2023-24"]
[Site "Germany"]
[Date "2024.03.16"]
[Round "12.7"]
[White "Geirnaert, Steven"]
[Black "Zwirs, Nico"]
[Result "1-0"]
[ECO "D36"]
[WhiteElo "2432"]
[BlackElo "2476"]
[Annotator "ChessBase"]
[PlyCount "267"]
[EventDate "2023.10.20"]
[EventType "team-tourn"]
[EventCountry "GER"]
[SourceTitle "playchess.com"]
[Source "ChessBase"]
[SourceQuality "1"]
[TimeControl "40/6000+30:3000+30"]

1. d4 {[%emt 0:00:04]} d5 {[%emt 0:00:03]} 2. c4 {[%emt 0:00:07]} e6 {[%emt 0:00:03]} 3. Nc3 {[%emt 0:00:12]} Nf6 {[%emt 0:00:02]} 4. cxd5 {[%emt 0:00:21]} exd5 {[%emt 0:00:02]} 5. Bg5 {[%emt 0:00:08]} c6 {[%emt 0:00:03]} 6. e3 {[%emt 0:00:21]} h6 {[%emt 0:00:03]} 7. Bh4 {[%emt 0:01:16]} Be7 {[%emt 0:00:28]} 8. Bd3 {[%emt 0:01:00]} O-O {[%emt 0:00:39]} 9. Qc2 {[%emt 0:00:28]} Re8 {[%emt 0:00:13]} 10. Nge2 {[%emt 0:00:17]} Nbd7 {[%emt 0:02:04]} 11. f3 {[%emt 0:00:26]} b5 {[%emt 0:01:22]} 12. O-O {[%emt 0:00:16]} Nb6 {[%emt 0:07:48]} 13. Bf2 {[%emt 0:02:33]} Bd7 {[%emt 0:07:31]} 14. Ng3 {[%emt 0:01:14]} Rc8 {[%emt 0:04:35]} 15. Rad1 {[%emt 0:12:52]} c5 {[%emt 0:13:54]} 16. dxc5 {[%emt 0:12:53]} Bxc5 {[%emt 0:01:44]} 17. e4 {[%emt 0:03:24]} Bf8 {[%emt 0:26:07]} 18. Qb1 {[%emt 0:23:42]} dxe4 {[%emt 0:00:14]} 19. Ngxe4 {[%emt 0:04:00]} Nxe4 {[%emt 0:03:02]} 20. Bxe4 {[%emt 0:08:12]} Qf6 {[%emt 0:08:50]} 21. Kh1 {[%emt 0:05:34]} Bc6 {[%emt 0:18:31]} 22. Bh7+ {[%emt 0:15:23]} Kh8 {[%emt 0:00:04]} 23. Bd4 {[%emt 0:00:20]} Qh4 {[%emt 0:01:29]} 24. Bf5 {[%emt 0:04:45]} Rcd8 {[%emt 0:00:39]} 25. Ne4 {[%emt 0:00:31]} Bxe4 {[%emt 0:03:55]} 26. Bxe4 {[%emt 0:01:52]} Bd6 {[%emt 0:00:01]} 27. Bg1 {[%emt 0:00:55]} Nc4 {[%emt 0:02:44]} 28. Rfe1 {[%emt 0:06:15]} Be5 {[%emt 0:02:57]} 29. Bc6 {[%emt 0:03:01]} Rxd1 {[%emt 0:00:13]} 30. Rxd1 {[%emt 0:00:09]} Rc8 {[%emt 0:03:24]} 31. Qe4 {[%emt 0:01:40]} Qxe4 {[%emt 0:00:05]} 32. Bxe4 {[%emt 0:00:04]} Nxb2 {[%emt 0:01:30]} 33. Rd5 {[%emt 0:00:41]} Bf6 {[%emt 0:01:04]} 34. Rxb5 {[%emt 0:00:26]} g6 {[%emt 0:00:24]} 35. g3 {[%emt 0:00:11]} Rc1 {[%emt 0:01:17]} 36. Kg2 {[%emt 0:00:05]} Nc4 {[%emt 0:00:42]} 37. Bd5 {[%emt 0:01:15]} Nd6 {[%emt 0:00:34]} 38. Rb8+ {[%emt 0:00:15]} Kg7 {[%emt 0:00:03]} 39. Bxa7 {[%emt 0:00:11]} Rc2+ {[%emt 0:00:39]} 40. Kh3 {[%emt 0:01:15]} Rd2 {[%emt 0:00:28]} 41. Bb3 {[%emt 0:51:24]} g5 {[%emt 0:11:08]} 42. Bc5 {[%emt 0:00:00]} h5 {[%emt 0:07:10]} 43. Bb4 {[%emt 0:00:00]} Rd4 {[%emt 0:01:57]} 44. a4 {[%emt 0:00:00]} Nf5 {[%emt 0:05:54]} 45. Kg2 {[%emt 0:00:00]} Rd3 {[%emt 0:03:38]} 46. a5 {[%emt 0:00:00]} Bd4 {[%emt 0:05:22]} 47. a6 {[%emt 0:00:00]} Ne3+ {[%emt 0:11:01]} 48. Kf2 {[%emt 0:00:00]} Ng4+ {[%emt 0:00:38]} 49. Ke2 {[%emt 0:00:29]} Re3+ {[%emt 0:00:05]} 50. Kd2 {[%emt 0:00:03]} Nxh2 {[%emt 0:01:07]} 51. Bd5 {[%emt 0:00:44]} Nxf3+ {[%emt 0:00:33]} 52. Kc2 {[%emt 0:00:05]} h4 {[%emt 0:04:51]} 53. gxh4 {[%emt 0:00:02]} gxh4 {[%emt 0:00:01]} 54. Rb7 {[%emt 0:00:12]} Ng5 {[%emt 0:02:25]} 55. a7 {[%emt 0:00:03]} Bxa7 {[%emt 0:00:15]} 56. Rxa7 {[%emt 0:00:01]} h3 {[%emt 0:00:38]} 57. Bd2 {[%emt 0:01:54]} Rg3 {[%emt 0:00:03]} 58. Bf4 {[%emt 0:01:06]} Rg4 {[%emt 0:00:58]} 59. Be5+ {[%emt 0:00:17]} Kg6 {[%emt 0:00:14]} 60. Kd3 {[%emt 0:00:21]} Rg1 {[%emt 0:01:32]} 61. Ke2 {[%emt 0:00:16]} Rc1 {[%emt 0:00:34]} 62. Kf2 {[%emt 0:01:20]} Rc2+ {[%emt 0:00:41]} 63. Kg3 {[%emt 0:00:15]} h2 {[%emt 0:00:58]} 64. Bg2 {[%emt 0:01:33]} Kf5 {[%emt 0:00:24]} 65. Ba1 {[%emt 0:01:01]} Kg6 {[%emt 0:00:49]} 66. Kxh2 {[%emt 0:00:11]} f5 {[%emt 0:00:06]} 67. Ra4 {[%emt 0:01:58]} Rd2 {[%emt 0:00:20]} 68. Bc3 {[%emt 0:00:58]} Rc2 {[%emt 0:00:02]} 69. Bh8 {[%emt 0:00:50]} Kh7 {[%emt 0:00:46]} 70. Ba1 {[%emt 0:00:06]} Kg6 {[%emt 0:00:01]} 71. Kg3 {[%emt 0:01:29]} Ne4+ {[%emt 0:00:05]} 72. Kh3 {[%emt 0:00:19]} Ng5+ {[%emt 0:00:29]} 73. Kh2 {[%emt 0:00:03]} Rd2 {[%emt 0:00:43]} 74. Bc3 {[%emt 0:00:19]} Rc2 {[%emt 0:00:04]} 75. Bh8 {[%emt 0:00:04]} Kh7 {[%emt 0:00:31]} 76. Bf6 {[%emt 0:00:05]} Kg6 {[%emt 0:00:16]} 77. Bd8 {[%emt 0:00:18]} Kh5 {[%emt 0:02:19]} 78. Kg1 {[%emt 0:02:04]} Rc1+ {[%emt 0:00:16]} 79. Bf1 {[%emt 0:00:28]} Ne4 {[%emt 0:00:34]} 80. Kg2 {[%emt 0:00:43]} Rc2+ {[%emt 0:00:10]} 81. Kg1 {[%emt 0:00:36]} Rc1 {[%emt 0:00:13]} 82. Kg2 {[%emt 0:00:40]} Rc2+ {[%emt 0:00:05]} 83. Kh3 {[%emt 0:00:14]} Nf2+ {[%emt 0:01:54]} 84. Kh2 {[%emt 0:00:00]} Ng4+ {[%emt 0:00:20]} 85. Kg1 {[%emt 0:01:13]} Rc1 {[%emt 0:00:10]} 86. Bb6 {[%emt 0:00:14]} Nh2 {[%emt 0:00:57]} 87. Kxh2 {[%emt 0:00:03]} Rxf1 {[%emt 0:00:04]} 88. Be3 {[%emt 0:00:20]} Rf3 {[%emt 0:00:15]} 89. Bf4 {[%emt 0:00:34]} Rb3 {[%emt 0:00:39]} 90. Kg2 {[%emt 0:00:10]} Rd3 {[%emt 0:00:44]} 91. Kf2 {[%emt 0:00:06]} Rb3 {[%emt 0:00:46]} 92. Be3 {[%emt 0:00:28]} Kg6 {[%emt 0:00:21]} 93. Kf3 {[%emt 0:00:22]} Kf6 {[%emt 0:00:03]} 94. Kf4 {[%emt 0:00:14]} Ke6 {[%emt 0:00:04]} 95. Ra6+ {[%emt 0:00:36]} Kd5 {[%emt 0:00:07]} 96. Ra5+ {[%emt 0:00:04]} Ke6 {[%emt 0:00:10]} 97. Re5+ {[%emt 0:00:11]} Kd6 {[%emt 0:00:03]} 98. Kxf5 {[%emt 0:00:25]} Rd3 {[%emt 0:00:16]} 99. Bc5+ {[%emt 0:00:26]} Kc6 {[%emt 0:00:06]} 100. Ke4 {[%emt 0:00:47]} Rd1 {[%emt 0:00:04]} 101. Be3 {[%emt 0:00:27]} Kd6 {[%emt 0:00:14]} 102. Rh5 {[%emt 0:00:35]} Kc6 {[%emt 0:00:10]} 103. Ra5 {[%emt 0:00:54]} Rh1 {[%emt 0:01:23]} 104. Ra6+ {[%emt 0:00:29]} Kb5 {[%emt 0:00:17]} 105. Rb6+ {[%emt 0:00:14]} Kc4 {[%emt 0:00:08]} 106. Rc6+ {[%emt 0:00:05]} Kb5 {[%emt 0:00:06]} 107. Rc7 {[%emt 0:00:29]} Rh4+ {[%emt 0:00:23]} 108. Kd3 {[%emt 0:00:17]} Rh5 {[%emt 0:00:49]} 109. Rb7+ {[%emt 0:01:21]} Kc6 {[%emt 0:00:07]} 110. Rb6+ {[%emt 0:00:05]} Kc7 {[%emt 0:00:11]} 111. Rg6 {[%emt 0:00:33]} Rh4 {[%emt 0:00:19]} 112. Bd4 {[%emt 0:00:00]} Kd7 {[%emt 0:00:22]} 113. Kc4 {[%emt 0:00:00]} Rh5 {[%emt 0:00:51]} 114. Bc5 {[%emt 0:00:11]} Rh4+ {[%emt 0:01:55]} 115. Kb5 {[%emt 0:00:05]} Rh7 {[%emt 0:01:33]} 116. Ra6 {[%emt 0:01:41]} Ke8 {[%emt 0:00:59]} 117. Kc4 {[%emt 0:00:47]} Rh5 {[%emt 0:00:17]} 118. Ra7 {[%emt 0:00:11]} Rf5 {[%emt 0:00:11]} 119. Re7+ {[%emt 0:00:46]} Kd8 {[%emt 0:00:02]} 120. Bd6 {[%emt 0:00:46]} Rf1 {[%emt 0:01:07]} 121. Rh7 {[%emt 0:00:21]} Rd1 {[%emt 0:00:24]} 122. Kc5 {[%emt 0:00:09]} Ke8 {[%emt 0:01:10]} 123. Kc6 {[%emt 0:00:55]} Re1 {[%emt 0:00:31]} 124. Kd5 {[%emt 0:00:07]} Kd8 {[%emt 0:00:57]} 125. Be5 {[%emt 0:00:18]} Kc8 {[%emt 0:01:01]} 126. Ke6 {[%emt 0:00:56]} Rc1 {[%emt 0:00:31]} 127. Ra7 {[%emt 0:00:54]} Rc2 {[%emt 0:00:27]} 128. Bd6 {[%emt 0:00:57]} Rc1 {[%emt 0:00:35]} 129. Kd5 {[%emt 0:00:07]} Rc2 {[%emt 0:00:57]} 130. Bc5 {[%emt 0:00:29]} Kb8 {[%emt 0:00:14]} 131. Rg7 {[%emt 0:00:50]} Re2 {[%emt 0:00:47]} 132. Kc6 {[%emt 0:00:15]} Re6+ {[%emt 0:00:09]} 133. Bd6+ {[%emt 0:00:07]} Ka8 {[%emt 0:00:02]} 134. Rg1 {[%emt 0:00:29]} 1-0

[Event "German Bundesliga 2023-24"]
[Site "Germany"]
[Date "2024.03.16"]
[Round "12.8"]
[White "Sebastian, Dirk"]
[Black "Baerwinkel, Tobias"]
[Result "1/2-1/2"]
[ECO "B90"]
[WhiteElo "2432"]
[BlackElo "2306"]
[Annotator "TA"]
[PlyCount "76"]
[EventDate "2023.10.20"]
[EventType "team-tourn"]
[EventCountry "GER"]
[SourceTitle "playchess.com"]
[Source "ChessBase"]
[SourceQuality "1"]
[TimeControl "40/6000+30:3000+30"]

{[%evp 12,76,15,16,44,28,35,13,13,13,20,18,32,0,11,0,41,0,0,0,0,0,0,-12,-22,-7,0,0,0,-5,0,-17,-19,-20,-14,-33,-35,-30,-15,-18,-25,-91,-26,-27,-20,-25,-26,-16,-6,-30,0,-28,0,-11,0,-30,0,0,0,0,0,-7,0,0,0,0,0]} 1. e4 {[%emt 0:00:07]} c5 {[%emt 0:00:09]} 2. Nf3 {[%emt 0:00:25]} d6 {[%emt 0:00:36]} 3. d4 {[%emt 0:00:22]} cxd4 {[%emt 0:00:00]} 4. Nxd4 {[%emt 0:00:07]} Nf6 {[%emt 0:00:07]} 5. Nc3 {[%emt 0:00:10]} a6 {[%emt 0:00:14]} 6. h3 {[%emt 0:02:09]} e5 {[%emt 0:00:50]} 7. Nde2 {[%emt 0:00:31]} h5 {[%emt 0:01:01]} 8. g3 {[%emt 0:00:39]} Be7 {[%emt 0:00:56]} 9. Be3 {[%emt 0:02:48]} Nbd7 {[%emt 0:10:42][%cal Bb8d7,Bd7c5,Bc5e6,Be6f8,Bf8g6][%mdl 32]} 10. a4 {[%emt 0:01:49]} Nc5 {[%emt 0:11:39]} 11. Bg2 {[%emt 0:04:25]} Bd7 {[%emt 0:01:35]} 12. b4 {[%emt 0:10:44]} Ne6 {[%emt 0:01:04]} 13. a5 {[%emt 0:06:39]} O-O {[%emt 0:10:52]} 14. O-O {[%emt 0:24:15]} Rc8 {[%emt 0:07:01]} 15. Qd3 {[%emt 0:09:10]} Qc7 {[%emt 0:05:30]} 16. f4 {[%emt 0:05:01]} Rfe8 {[%emt 0:03:57]} 17. Rad1 {[%emt 0:05:40]} Nf8 {[%emt 0:06:40]} 18. Rd2 {[%emt 0:06:29]} Qc4 {[%emt 0:05:31]} 19. Rb1 {[%emt 0:01:42]} Ng6 {[%emt 0:04:03]} 20. f5 {[%emt 0:04:29]} Nf8 {[%emt 0:01:01]} 21. b5 {[%emt 0:02:12]} axb5 {[%emt 0:04:43]} 22. Nxb5 {[%emt 0:01:10]} Qa2 {[%emt 0:02:36]} 23. Nbc3 {[%emt 0:03:59]} Qxa5 {[%emt 0:01:06]} 24. Rxb7 {[%emt 0:00:16]} Rc7 {[%emt 0:04:24]} 25. Rb3 {[%emt 0:04:13] Und Bb6 würde nun gewinnen.} Qa8 {[%emt 0:01:11]} 26. Bf3 {[%emt 0:01:05]} (26. Kh2 $11) 26... Bc6 {[%emt 0:02:47]} (26... Bxf5 $17 27. Nd5 Qxd5 28. exd5 Bxd3 29. cxd3 N8d7) 27. g4 $11 {[%emt 0:02:14]} hxg4 {[%emt 0:01:13]} 28. hxg4 {[%emt 0:00:00]} N6h7 {[%emt 0:00:31]} 29. Ng3 {[%emt 0:01:27]} Ng5 {[%emt 0:01:50]} 30. Bg2 {[%emt 0:01:07] Aktives Gegenspiel!} Rb8 {[%emt 0:02:14]} 31. Rf2 {[%emt 0:03:38][%cal Bd2f2,Bf2f1,Bf1a1][%mdl 32]} Rcb7 {[%emt 0:07:19]} 32. Rxb7 $1 {[%emt 0:01:22]} Qxb7 {[%emt 0:00:06]} 33. Nh5 {[%emt 0:00:25]} Nfh7 {[%emt 0:01:00]} 34. Rf1 {[%emt 0:00:59] Die Stellung ist ausgeglichen.} Qc7 {[%emt 0:04:46]} 35. Ra1 {[%emt 0:00:40]} Ra8 {[%emt 0:00:50]} 36. Rb1 {[%emt 0:01:05]} Rb8 {[%emt 0:00:41]} 37. Ra1 {[%emt 0:00:06]} Ra8 {[%emt 0:00:25]} 38. Rb1 {[%emt 0:00:04]} Rb8 {[%emt 0:02:07] Gewichteter Fehlerwert: Weiß=0.11 (sehr präzise) /Schwarz=0.09 (makellos) .  Fehler:       	Weiß=1     	Schwarz=1     Ungenau:       	Weiß=3     	Schwarz=3     OK:         	Weiß=8     	Schwarz=15    Bester:       	Weiß=1     	Schwarz=1     Stark:        	Weiß=1     	---} 1/2-1/2

[Event "German Bundesliga 2023-24"]
[Site "Germany"]
[Date "2024.03.16"]
[Round "12.8"]
[White "Rafiee, Makan"]
[Black "Wegerle, Joerg"]
[Result "1/2-1/2"]
[ECO "B32"]
[WhiteElo "2279"]
[BlackElo "2405"]
[Annotator "TA"]
[PlyCount "43"]
[EventDate "2023.10.20"]
[EventType "team-tourn"]
[EventCountry "GER"]
[SourceTitle "playchess.com"]
[Source "ChessBase"]
[SourceQuality "1"]
[TimeControl "40/6000+30:3000+30"]

{[%evp 18,43,28,22,28,19,22,29,18,12,24,17,13,12,16,5,8,5,8,8,7,4,6,0,4,-4,-5,-6]} 1. e4 {[%emt 0:00:03]} c5 {[%emt 0:00:06]} 2. Nf3 {[%emt 0:00:17]} Nc6 {[%emt 0:00:07]} 3. d4 {[%emt 0:00:11]} cxd4 {[%emt 0:00:07]} 4. Nxd4 {[%emt 0:00:06]} e5 {[%emt 0:00:05]} 5. Nb5 {[%emt 0:00:15]} a6 {[%emt 0:00:18]} 6. Nd6+ {[%emt 0:00:16]} Bxd6 {[%emt 0:00:02]} 7. Qxd6 {[%emt 0:00:07]} Qe7 {[%emt 0:00:06]} 8. Qxe7+ {[%emt 0:03:31]} Ngxe7 {[%emt 0:00:20]} 9. Bd2 {[%emt 0:00:50]} d5 {[%emt 0:01:05]} 10. Nc3 {[%emt 0:00:08]} Be6 {[%emt 0:00:30][%cal Bc8e6,Be6d5,Bd5e4,Be4g6][%mdl 32]} 11. exd5 {[%emt 0:04:49]} Nxd5 {[%emt 0:00:25]} 12. Nxd5 {[%emt 0:01:43]} Bxd5 {[%emt 0:00:16] White has an edge.} 13. O-O-O {[%emt 0:00:10][%cal Od2h6]} O-O-O {[%emt 0:02:15]} 14. Bc3 {[%emt 0:04:28]} f6 {[%emt 0:07:03] The position is equal.} 15. Be2 {[%emt 0:13:10]} Kc7 {[%emt 0:10:04]} (15... Bxa2 $2 16. b3 $18) (15... Bxg2 16. Rhg1 Rxd1+ 17. Bxd1 $16) 16. Rd2 {[%emt 0:04:23]} Be4 {[%emt 0:05:27]} (16... Bxa2 $2 {loses.} 17. Rxd8 Rxd8 18. b3 $18) ({But not} 16... Bxg2 $6 17. Rg1 Rxd2 18. Bxd2 $16) 17. f3 {[%emt 0:10:46]} Rxd2 {[%emt 0:02:59]} 18. Kxd2 {[%emt 0:00:23]} Rd8+ {[%emt 0:02:25]} 19. Kc1 {[%emt 0:00:56]} Bg6 {[%emt 0:03:18]} 20. Rd1 {[%emt 0:04:39]} Nd4 {[%emt 0:12:05]} 21. Rd2 {[%emt 0:19:20][%cal Oe2a6]} Nxe2+ {[%emt 0:04:53]} 22. Rxe2 {[%emt 0:00:10] An uneventful encounter.   Weighted Error Value: White=0.04 (flawless) /Black=0.01 (flawless) .  OK:         	White=3     	Black=7} 1/2-1/2